Workbook

Sheet Disclaimer (hidden)
B2: Legal disclaimer
B3: Please fully read this disclaimer before using this model
E34: www.lentransolutions.com | T34: Level 8, Suite 3, 234 George Street, NSW 2000
E35: contact@lentransolutions.com | T35: ABN: 66 615 474 523

Sheet Title
C12: =Model_Name -> Working Capital Adjustments
C13: LMS Tutorial
C14: Sydney, January 2017
E34: www.lentransolutions.com | T34: Level 8, Suite 3, 234 George Street, NSW 2000
E35: contact@lentransolutions.com | T35: ABN: 66 615 474 523

Sheet Inputs
C1: Assumptions
C2: ="Tutorial: "&Model_Name -> Tutorial: Working Capital Adjustments
C6: Tutorial inputs
C7: Timing
C8: Model start | D8: Date | E8: 2016-12-31
C9: Operations start | D9: Date | E9: =E8+1 -> 2017-01-01
C10: Operations duration | D10: Year(s) | E10: 3
C11: Operations end | D11: Date | E11: =EOMONTH(E9,E10*Mths_Yr-1) -> 2019-12-31
C13: 'Days' method
C14: Debtors
C15: Debtor days | D15: Days | E15: 10
C17: Alternative method
C18: Debtors | E18: Days | F18: Months
C19: Debtor period (until revenue recognised) | D19: Days | E19: 42 | F19: =E19/Days_Mth -> 1.4
C21: Technical inputs
C22: General
C23: Tutorial name | D23: Name | E23: Working Capital Adjustments
C24: Months in year | D24: Months | E24: 12
C25: Months in quarter | D25: Months | E25: 3
C26: Days in month (constant) | D26: Months | E26: 30

Sheet Calcs_Days
C1: Calculations: Days method
C2: ="Tutorial: "&Model_Name -> Tutorial: Working Capital Adjustments
C3: Period start | I3: =H4+1 -> 2017-01-01 | J3: =I4+1 -> 2017-02-01 | K3: =J4+1 -> 2017-03-01 | L3: =K4+1 -> 2017-04-01 | M3: 2017-05-01 | N3: 2017-06-01 | O3: 2017-07-01 | P3: 2017-08-01 | Q3: 2017-09-01 | R3: 2017-10-01 | S3: 2017-11-01 | T3: 2017-12-01 | U3: 2018-01-01 | V3: 2018-02-01 | W3: 2018-03-01 | X3: 2018-04-01 | Y3: 2018-05-01 | Z3: 2018-06-01 | AA3: 2018-07-01 | AB3: 2018-08-01 | AC3: 2018-09-01 | AD3: 2018-10-01 | AE3: 2018-11-01 | AF3: 2018-12-01 | AG3: 2019-01-01 | AH3: 2019-02-01 | AI3: 2019-03-01 | AJ3: 2019-04-01 | AK3: 2019-05-01 | AL3: 2019-06-01 | AM3: 2019-07-01 | AN3: 2019-08-01 | AO3: 2019-09-01 | AP3: 2019-10-01 | AQ3: 2019-11-01 | AR3: 2019-12-01 | AS3: 2020-01-01 | AT3: 2020-02-01 | AU3: 2020-03-01 | AV3: 2020-04-01 | AW3: 2020-05-01 | AX3: 2020-06-01 | AY3: 2020-07-01 | AZ3: 2020-08-01 | BA3: 2020-09-01 | BB3: 2020-10-01 | BC3: 2020-11-01 | BD3: 2020-12-01 | BE3: 2021-01-01 | BF3: 2021-02-01 | BG3: 2021-03-01 | BH3: 2021-04-01 | BI3: 2021-05-01 | BJ3: 2021-06-01 | BK3: 2021-07-01 | BL3: 2021-08-01 | BM3: 2021-09-01 | BN3: 2021-10-01 | BO3: 2021-11-01 | BP3: 2021-12-01
C4: Period end | D4: Start | E4: End | H4: =Inputs!E8 -> 2016-12-31 | I4: =EOMONTH(I3,0) -> 2017-01-31 | J4: =EOMONTH(J3,0) -> 2017-02-28 | K4: =EOMONTH(K3,0) -> 2017-03-31 | L4: =EOMONTH(L3,0) -> 2017-04-30 | M4: 2017-05-31 | N4: 2017-06-30 | O4: 2017-07-31 | P4: 2017-08-31 | Q4: 2017-09-30 | R4: 2017-10-31 | S4: 2017-11-30 | T4: 2017-12-31 | U4: 2018-01-31 | V4: 2018-02-28 | W4: 2018-03-31 | X4: 2018-04-30 | Y4: 2018-05-31 | Z4: 2018-06-30 | AA4: 2018-07-31 | AB4: 2018-08-31 | AC4: 2018-09-30 | AD4: 2018-10-31 | AE4: 2018-11-30 | AF4: 2018-12-31 | AG4: 2019-01-31 | AH4: 2019-02-28 | AI4: 2019-03-31 | AJ4: 2019-04-30 | AK4: 2019-05-31 | AL4: 2019-06-30 | AM4: 2019-07-31 | AN4: 2019-08-31 | AO4: 2019-09-30 | AP4: 2019-10-31 | AQ4: 2019-11-30 | AR4: 2019-12-31 | AS4: 2020-01-31 | AT4: 2020-02-29 | AU4: 2020-03-31 | AV4: 2020-04-30 | AW4: 2020-05-31 | AX4: 2020-06-30 | AY4: 2020-07-31 | AZ4: 2020-08-31 | BA4: 2020-09-30 | BB4: 2020-10-31 | BC4: 2020-11-30 | BD4: 2020-12-31 | BE4: 2021-01-31 | BF4: 2021-02-28 | BG4: 2021-03-31 | BH4: 2021-04-30 | BI4: 2021-05-31 | BJ4: 2021-06-30 | BK4: 2021-07-31 | BL4: 2021-08-31 | BM4: 2021-09-30 | BN4: 2021-10-31 | BO4: 2021-11-30 | BP4: 2021-12-31
C5: Operations | D5: =Inputs!E9 -> 2017-01-01 | E5: =Inputs!E11 -> 2019-12-31 | H5: =SUM(I5:BP5) -> 36 | I5: =IF(AND(I$3>=$D5,I$4<=$E5),1,0) -> 1 | J5: =IF(AND(J$3>=$D5,J$4<=$E5),1,0) -> 1 | K5: 1 | L5: 1 | M5: 1 | N5: 1 | O5: 1 | P5: 1 | Q5: 1 | R5: 1 | S5: 1 | T5: 1 | U5: 1 | V5: 1 | W5: 1 | X5: 1 | Y5: 1 | Z5: 1 | AA5: 1 | AB5: 1 | AC5: 1 | AD5: 1 | AE5: 1 | AF5: 1 | AG5: 1 | AH5: 1 | AI5: 1 | AJ5: 1 | AK5: 1 | AL5: 1 | AM5: 1 | AN5: 1 | AO5: 1 | AP5: 1 | AQ5: 1 | AR5: 1 | AS5: 0 | AT5: 0 | AU5: 0 | AV5: 0 | AW5: 0 | AX5: 0 | AY5: 0 | AZ5: 0 | BA5: 0 | BB5: 0 | BC5: 0 | BD5: 0 | BE5: 0 | BF5: 0 | BG5: 0 | BH5: 0 | BI5: 0 | BJ5: 0 | BK5: 0 | BL5: 0 | BM5: 0 | BN5: 0 | BO5: 0 | BP5: 0
C7: Counter
C8: Days in period | D8: Days | I8: =I4-I3+1 -> 31 | J8: =J4-J3+1 -> 28 | K8: 31 | L8: 30 | M8: 31 | N8: 30 | O8: 31 | P8: 31 | Q8: 30 | R8: 31 | S8: 30 | T8: 31 | U8: 31 | V8: 28 | W8: 31 | X8: 30 | Y8: 31 | Z8: 30 | AA8: 31 | AB8: 31 | AC8: 30 | AD8: 31 | AE8: 30 | AF8: 31 | AG8: 31 | AH8: 28 | AI8: 31 | AJ8: 30 | AK8: 31 | AL8: 30 | AM8: 31 | AN8: 31 | AO8: 30 | AP8: 31 | AQ8: 30 | AR8: 31 | AS8: 31 | AT8: 29 | AU8: 31 | AV8: 30 | AW8: 31 | AX8: 30 | AY8: 31 | AZ8: 31 | BA8: 30 | BB8: 31 | BC8: 30 | BD8: 31 | BE8: 31 | BF8: 28 | BG8: 31 | BH8: 30 | BI8: 31 | BJ8: 30 | BK8: 31 | BL8: 31 | BM8: 30 | BN8: 31 | BO8: 30 | BP8: 31
C10: Time-series inputs
C11: Revenue (random values) | D11: AUD '000 | I11: 1033.391766 | J11: 1202.403488 | K11: 8104.882475 | L11: 532.9679427 | M11: 1707.321402 | N11: 9558.888116 | O11: 1596.897917 | P11: 5762.291606 | Q11: 8429.34941 | R11: 3194.583532 | S11: 3985.959447 | T11: 7214.380958 | U11: 1579.088871 | V11: 7923.885469 | W11: 4864.303538 | X11: 9143.944422 | Y11: 4337.389856 | Z11: 5876.395287 | AA11: 5357.300383 | AB11: 1669.442632 | AC11: 1454.452618 | AD11: 1845.216599 | AE11: 7105.782676 | AF11: 590.9400148 | AG11: 4699.49788 | AH11: 9063.159612 | AI11: 6720.101321 | AJ11: 9551.804627 | AK11: 3766.356167 | AL11: 1624.255016 | AM11: 7419.674269 | AN11: 6688.275638 | AO11: 3547.336672 | AP11: 8143.049015 | AQ11: 6869.091934 | AR11: 8702.426048 | AS11: 6979.441611 | AT11: 2766.700466 | AU11: 7594.891355 | AV11: 2267.356499 | AW11: 2892.050061 | AX11: 9949.821622 | AY11: 2609.383466 | AZ11: 7848.928815 | BA11: 8539.936436 | BB11: 6047.83977 | BC11: 5400.163729 | BD11: 6612.070498 | BE11: 6404.382261 | BF11: 4959.087817 | BG11: 4224.050292 | BH11: 4380.418477 | BI11: 3521.430201 | BJ11: 6687.559557 | BK11: 6038.159575 | BL11: 5051.219952 | BM11: 6874.276344 | BN11: 6914.895345 | BO11: 9691.338789 | BP11: 650.2926116
C12: Revenue (utilised) | D12: AUD '000 | I12: =I5*I11 -> 1033.391766 | J12: =J5*J11 -> 1202.403488 | K12: 8104.882475 | L12: 532.9679427 | M12: 1707.321402 | N12: 9558.888116 | O12: 1596.897917 | P12: 5762.291606 | Q12: 8429.34941 | R12: 3194.583532 | S12: 3985.959447 | T12: 7214.380958 | U12: 1579.088871 | V12: 7923.885469 | W12: 4864.303538 | X12: 9143.944422 | Y12: 4337.389856 | Z12: 5876.395287 | AA12: 5357.300383 | AB12: 1669.442632 | AC12: 1454.452618 | AD12: 1845.216599 | AE12: 7105.782676 | AF12: 590.9400148 | AG12: 4699.49788 | AH12: 9063.159612 | AI12: 6720.101321 | AJ12: 9551.804627 | AK12: 3766.356167 | AL12: 1624.255016 | AM12: 7419.674269 | AN12: 6688.275638 | AO12: 3547.336672 | AP12: 8143.049015 | AQ12: 6869.091934 | AR12: 8702.426048 | AS12: 0 | AT12: 0 | AU12: 0 | AV12: 0 | AW12: 0 | AX12: 0 | AY12: 0 | AZ12: 0 | BA12: 0 | BB12: 0 | BC12: 0 | BD12: 0 | BE12: 0 | BF12: 0 | BG12: 0 | BH12: 0 | BI12: 0 | BJ12: 0 | BK12: 0 | BL12: 0 | BM12: 0 | BN12: 0 | BO12: 0 | BP12: 0
C14: Trade debtors
C15: Account
C16: Balance b/f | D16: AUD '000 | I16: =H19*I5 -> 0 | J16: =I19*J5 -> 333.3521825 | K16: 429.4298172 | L16: 2614.478218 | M16: 177.6559809 | N16: 550.7488394 | O16: 3186.296039 | P16: 515.1283604 | Q16: 1858.803744 | R16: 2809.783137 | S16: 1030.510817 | T16: 1328.653149 | U16: 2327.219664 | V16: 509.3835067 | W16: 2829.959096 | X16: 1569.130173 | Y16: 3047.981474 | Z16: 1399.158018 | AA16: 1958.798429 | AB16: 1728.161414 | AC16: 538.5298813 | AD16: 484.8175392 | AE16: 595.2311611 | AF16: 2368.594225 | AG16: 190.6258112 | AH16: 1515.967058 | AI16: 3236.842719 | AJ16: 2167.77462 | AK16: 3183.934876 | AL16: 1214.953602 | AM16: 541.4183386 | AN16: 2393.443313 | AO16: 2157.50827 | AP16: 1182.445557 | AQ16: 2626.790005 | AR16: 2289.697311 | AS16: 0 | AT16: 0 | AU16: 0 | AV16: 0 | AW16: 0 | AX16: 0 | AY16: 0 | AZ16: 0 | BA16: 0 | BB16: 0 | BC16: 0 | BD16: 0 | BE16: 0 | BF16: 0 | BG16: 0 | BH16: 0 | BI16: 0 | BJ16: 0 | BK16: 0 | BL16: 0 | BM16: 0 | BN16: 0 | BO16: 0 | BP16: 0
C17: Revenue | D17: AUD '000 | E17: Days | H17: =SUM(I17:BP17) -> 180866.4886 | I17: =I12 -> 1033.391766 | J17: =J12 -> 1202.403488 | K17: 8104.882475 | L17: 532.9679427 | M17: 1707.321402 | N17: 9558.888116 | O17: 1596.897917 | P17: 5762.291606 | Q17: 8429.34941 | R17: 3194.583532 | S17: 3985.959447 | T17: 7214.380958 | U17: 1579.088871 | V17: 7923.885469 | W17: 4864.303538 | X17: 9143.944422 | Y17: 4337.389856 | Z17: 5876.395287 | AA17: 5357.300383 | AB17: 1669.442632 | AC17: 1454.452618 | AD17: 1845.216599 | AE17: 7105.782676 | AF17: 590.9400148 | AG17: 4699.49788 | AH17: 9063.159612 | AI17: 6720.101321 | AJ17: 9551.804627 | AK17: 3766.356167 | AL17: 1624.255016 | AM17: 7419.674269 | AN17: 6688.275638 | AO17: 3547.336672 | AP17: 8143.049015 | AQ17: 6869.091934 | AR17: 8702.426048 | AS17: 0 | AT17: 0 | AU17: 0 | AV17: 0 | AW17: 0 | AX17: 0 | AY17: 0 | AZ17: 0 | BA17: 0 | BB17: 0 | BC17: 0 | BD17: 0 | BE17: 0 | BF17: 0 | BG17: 0 | BH17: 0 | BI17: 0 | BJ17: 0 | BK17: 0 | BL17: 0 | BM17: 0 | BN17: 0 | BO17: 0 | BP17: 0
C18: Received | D18: AUD '000 | E18: =Inputs!E15 -> 10 | H18: =SUM(I18:BP18) -> -178059.2544 | I18: =-((I8-$E18)/I8*I17+I16) -> -700.0395832 | J18: =-((J8-$E18)/J8*J17+J16) -> -1106.325854 | K18: -5919.834075 | L18: -2969.79018 | M18: -1334.228544 | N18: -6923.340917 | O18: -4268.065595 | P18: -4418.616222 | Q18: -7478.370017 | R18: -4973.855852 | S18: -3687.817115 | T18: -6215.814443 | U18: -3396.925028 | V18: -5603.30988 | W18: -6125.13246 | X18: -7665.093121 | Y18: -5986.213312 | Z18: -5316.754876 | AA18: -5587.937398 | AB18: -2859.074165 | AC18: -1508.16496 | AD18: -1734.802978 | AE18: -5332.419612 | AF18: -2768.908429 | AG18: -3374.156634 | AH18: -7342.283952 | AI18: -7789.16942 | AJ18: -8535.644371 | AK18: -5735.337441 | AL18: -2297.790279 | AM18: -5567.649295 | AN18: -6924.21068 | AO18: -4522.399385 | AP18: -6698.704567 | AQ18: -7206.184627 | AR18: -8184.88915 | AS18: 0 | AT18: 0 | AU18: 0 | AV18: 0 | AW18: 0 | AX18: 0 | AY18: 0 | AZ18: 0 | BA18: 0 | BB18: 0 | BC18: 0 | BD18: 0 | BE18: 0 | BF18: 0 | BG18: 0 | BH18: 0 | BI18: 0 | BJ18: 0 | BK18: 0 | BL18: 0 | BM18: 0 | BN18: 0 | BO18: 0 | BP18: 0
C19: Balance c/f | D19: AUD '000 | I19: =SUM(I16:I18) -> 333.3521825 | J19: =SUM(J16:J18) -> 429.4298172 | K19: 2614.478218 | L19: 177.6559809 | M19: 550.7488394 | N19: 3186.296039 | O19: 515.1283604 | P19: 1858.803744 | Q19: 2809.783137 | R19: 1030.510817 | S19: 1328.653149 | T19: 2327.219664 | U19: 509.3835067 | V19: 2829.959096 | W19: 1569.130173 | X19: 3047.981474 | Y19: 1399.158018 | Z19: 1958.798429 | AA19: 1728.161414 | AB19: 538.5298813 | AC19: 484.8175392 | AD19: 595.2311611 | AE19: 2368.594225 | AF19: 190.6258112 | AG19: 1515.967058 | AH19: 3236.842719 | AI19: 2167.77462 | AJ19: 3183.934876 | AK19: 1214.953602 | AL19: 541.4183386 | AM19: 2393.443313 | AN19: 2157.50827 | AO19: 1182.445557 | AP19: 2626.790005 | AQ19: 2289.697311 | AR19: 2807.234209 | AS19: 0 | AT19: 0 | AU19: 0 | AV19: 0 | AW19: 0 | AX19: 0 | AY19: 0 | AZ19: 0 | BA19: 0 | BB19: 0 | BC19: 0 | BD19: 0 | BE19: 0 | BF19: 0 | BG19: 0 | BH19: 0 | BI19: 0 | BJ19: 0 | BK19: 0 | BL19: 0 | BM19: 0 | BN19: 0 | BO19: 0 | BP19: 0
C21: Working captial adjustment for cashflow | D21: AUD '000 | H21: =SUM(I21:BP21) -> -2807.234209 | I21: =I16-I19 -> -333.3521825 | J21: =J16-J19 -> -96.07763476 | K21: -2185.048401 | L21: 2436.822237 | M21: -373.0928585 | N21: -2635.547199 | O21: 2671.167678 | P21: -1343.675383 | Q21: -950.9793928 | R21: 1779.27232 | S21: -298.1423324 | T21: -998.5665148 | U21: 1817.836157 | V21: -2320.575589 | W21: 1260.828923 | X21: -1478.851301 | Y21: 1648.823456 | Z21: -559.640411 | AA21: 230.6370153 | AB21: 1189.631532 | AC21: 53.71234213 | AD21: -110.4136219 | AE21: -1773.363064 | AF21: 2177.968414 | AG21: -1325.341247 | AH21: -1720.87566 | AI21: 1069.068099 | AJ21: -1016.160256 | AK21: 1968.981273 | AL21: 673.5352637 | AM21: -1852.024974 | AN21: 235.9350422 | AO21: 975.0627131 | AP21: -1444.344447 | AQ21: 337.0926934 | AR21: -517.5368975 | AS21: 0 | AT21: 0 | AU21: 0 | AV21: 0 | AW21: 0 | AX21: 0 | AY21: 0 | AZ21: 0 | BA21: 0 | BB21: 0 | BC21: 0 | BD21: 0 | BE21: 0 | BF21: 0 | BG21: 0 | BH21: 0 | BI21: 0 | BJ21: 0 | BK21: 0 | BL21: 0 | BM21: 0 | BN21: 0 | BO21: 0 | BP21: 0

Sheet Calcs_Alt
C1: Calculations: Alternative method
C2: ="Tutorial: "&Model_Name -> Tutorial: Working Capital Adjustments
C3: Period start | I3: =H4+1 -> 2017-01-01 | J3: =I4+1 -> 2017-02-01 | K3: =J4+1 -> 2017-03-01 | L3: =K4+1 -> 2017-04-01 | M3: 2017-05-01 | N3: 2017-06-01 | O3: 2017-07-01 | P3: 2017-08-01 | Q3: 2017-09-01 | R3: 2017-10-01 | S3: 2017-11-01 | T3: 2017-12-01 | U3: 2018-01-01 | V3: 2018-02-01 | W3: 2018-03-01 | X3: 2018-04-01 | Y3: 2018-05-01 | Z3: 2018-06-01 | AA3: 2018-07-01 | AB3: 2018-08-01 | AC3: 2018-09-01 | AD3: 2018-10-01 | AE3: 2018-11-01 | AF3: 2018-12-01 | AG3: 2019-01-01 | AH3: 2019-02-01 | AI3: 2019-03-01 | AJ3: 2019-04-01 | AK3: 2019-05-01 | AL3: 2019-06-01 | AM3: 2019-07-01 | AN3: 2019-08-01 | AO3: 2019-09-01 | AP3: 2019-10-01 | AQ3: 2019-11-01 | AR3: 2019-12-01 | AS3: 2020-01-01 | AT3: 2020-02-01 | AU3: 2020-03-01 | AV3: 2020-04-01 | AW3: 2020-05-01 | AX3: 2020-06-01 | AY3: 2020-07-01 | AZ3: 2020-08-01 | BA3: 2020-09-01 | BB3: 2020-10-01 | BC3: 2020-11-01 | BD3: 2020-12-01 | BE3: 2021-01-01 | BF3: 2021-02-01 | BG3: 2021-03-01 | BH3: 2021-04-01 | BI3: 2021-05-01 | BJ3: 2021-06-01 | BK3: 2021-07-01 | BL3: 2021-08-01 | BM3: 2021-09-01 | BN3: 2021-10-01 | BO3: 2021-11-01 | BP3: 2021-12-01
C4: Period end | D4: Start | E4: End | H4: =Inputs!E8 -> 2016-12-31 | I4: =EOMONTH(I3,0) -> 2017-01-31 | J4: =EOMONTH(J3,0) -> 2017-02-28 | K4: =EOMONTH(K3,0) -> 2017-03-31 | L4: =EOMONTH(L3,0) -> 2017-04-30 | M4: 2017-05-31 | N4: 2017-06-30 | O4: 2017-07-31 | P4: 2017-08-31 | Q4: 2017-09-30 | R4: 2017-10-31 | S4: 2017-11-30 | T4: 2017-12-31 | U4: 2018-01-31 | V4: 2018-02-28 | W4: 2018-03-31 | X4: 2018-04-30 | Y4: 2018-05-31 | Z4: 2018-06-30 | AA4: 2018-07-31 | AB4: 2018-08-31 | AC4: 2018-09-30 | AD4: 2018-10-31 | AE4: 2018-11-30 | AF4: 2018-12-31 | AG4: 2019-01-31 | AH4: 2019-02-28 | AI4: 2019-03-31 | AJ4: 2019-04-30 | AK4: 2019-05-31 | AL4: 2019-06-30 | AM4: 2019-07-31 | AN4: 2019-08-31 | AO4: 2019-09-30 | AP4: 2019-10-31 | AQ4: 2019-11-30 | AR4: 2019-12-31 | AS4: 2020-01-31 | AT4: 2020-02-29 | AU4: 2020-03-31 | AV4: 2020-04-30 | AW4: 2020-05-31 | AX4: 2020-06-30 | AY4: 2020-07-31 | AZ4: 2020-08-31 | BA4: 2020-09-30 | BB4: 2020-10-31 | BC4: 2020-11-30 | BD4: 2020-12-31 | BE4: 2021-01-31 | BF4: 2021-02-28 | BG4: 2021-03-31 | BH4: 2021-04-30 | BI4: 2021-05-31 | BJ4: 2021-06-30 | BK4: 2021-07-31 | BL4: 2021-08-31 | BM4: 2021-09-30 | BN4: 2021-10-31 | BO4: 2021-11-30 | BP4: 2021-12-31
C5: Operations | D5: =Inputs!E9 -> 2017-01-01 | E5: =Inputs!E11 -> 2019-12-31 | H5: =SUM(I5:BP5) -> 36 | I5: =IF(AND(I$3>=$D5,I$4<=$E5),1,0) -> 1 | J5: =IF(AND(J$3>=$D5,J$4<=$E5),1,0) -> 1 | K5: 1 | L5: 1 | M5: 1 | N5: 1 | O5: 1 | P5: 1 | Q5: 1 | R5: 1 | S5: 1 | T5: 1 | U5: 1 | V5: 1 | W5: 1 | X5: 1 | Y5: 1 | Z5: 1 | AA5: 1 | AB5: 1 | AC5: 1 | AD5: 1 | AE5: 1 | AF5: 1 | AG5: 1 | AH5: 1 | AI5: 1 | AJ5: 1 | AK5: 1 | AL5: 1 | AM5: 1 | AN5: 1 | AO5: 1 | AP5: 1 | AQ5: 1 | AR5: 1 | AS5: 0 | AT5: 0 | AU5: 0 | AV5: 0 | AW5: 0 | AX5: 0 | AY5: 0 | AZ5: 0 | BA5: 0 | BB5: 0 | BC5: 0 | BD5: 0 | BE5: 0 | BF5: 0 | BG5: 0 | BH5: 0 | BI5: 0 | BJ5: 0 | BK5: 0 | BL5: 0 | BM5: 0 | BN5: 0 | BO5: 0 | BP5: 0
C7: Time-series inputs
C8: Revenue (utilised) | D8: AUD '000 | H8: 1000 | I8: =Calcs_Days!I12 -> 1033.391766 | J8: =Calcs_Days!J12 -> 1202.403488 | K8: =Calcs_Days!K12 -> 8104.882475 | L8: =Calcs_Days!L12 -> 532.9679427 | M8: =Calcs_Days!M12 -> 1707.321402 | N8: =Calcs_Days!N12 -> 9558.888116 | O8: =Calcs_Days!O12 -> 1596.897917 | P8: =Calcs_Days!P12 -> 5762.291606 | Q8: =Calcs_Days!Q12 -> 8429.34941 | R8: =Calcs_Days!R12 -> 3194.583532 | S8: =Calcs_Days!S12 -> 3985.959447 | T8: =Calcs_Days!T12 -> 7214.380958 | U8: =Calcs_Days!U12 -> 1579.088871 | V8: =Calcs_Days!V12 -> 7923.885469 | W8: =Calcs_Days!W12 -> 4864.303538 | X8: =Calcs_Days!X12 -> 9143.944422 | Y8: =Calcs_Days!Y12 -> 4337.389856 | Z8: =Calcs_Days!Z12 -> 5876.395287 | AA8: =Calcs_Days!AA12 -> 5357.300383 | AB8: =Calcs_Days!AB12 -> 1669.442632 | AC8: =Calcs_Days!AC12 -> 1454.452618 | AD8: =Calcs_Days!AD12 -> 1845.216599 | AE8: =Calcs_Days!AE12 -> 7105.782676 | AF8: =Calcs_Days!AF12 -> 590.9400148 | AG8: =Calcs_Days!AG12 -> 4699.49788 | AH8: =Calcs_Days!AH12 -> 9063.159612 | AI8: =Calcs_Days!AI12 -> 6720.101321 | AJ8: =Calcs_Days!AJ12 -> 9551.804627 | AK8: =Calcs_Days!AK12 -> 3766.356167 | AL8: =Calcs_Days!AL12 -> 1624.255016 | AM8: =Calcs_Days!AM12 -> 7419.674269 | AN8: =Calcs_Days!AN12 -> 6688.275638 | AO8: =Calcs_Days!AO12 -> 3547.336672 | AP8: =Calcs_Days!AP12 -> 8143.049015 | AQ8: =Calcs_Days!AQ12 -> 6869.091934 | AR8: =Calcs_Days!AR12 -> 8702.426048 | AS8: =Calcs_Days!AS12 -> 0 | AT8: =Calcs_Days!AT12 -> 0 | AU8: =Calcs_Days!AU12 -> 0 | AV8: =Calcs_Days!AV12 -> 0 | AW8: =Calcs_Days!AW12 -> 0 | AX8: =Calcs_Days!AX12 -> 0 | AY8: =Calcs_Days!AY12 -> 0 | AZ8: =Calcs_Days!AZ12 -> 0 | BA8: =Calcs_Days!BA12 -> 0 | BB8: =Calcs_Days!BB12 -> 0 | BC8: =Calcs_Days!BC12 -> 0 | BD8: =Calcs_Days!BD12 -> 0 | BE8: =Calcs_Days!BE12 -> 0 | BF8: =Calcs_Days!BF12 -> 0 | BG8: =Calcs_Days!BG12 -> 0 | BH8: =Calcs_Days!BH12 -> 0 | BI8: =Calcs_Days!BI12 -> 0 | BJ8: =Calcs_Days!BJ12 -> 0 | BK8: =Calcs_Days!BK12 -> 0 | BL8: =Calcs_Days!BL12 -> 0 | BM8: =Calcs_Days!BM12 -> 0 | BN8: =Calcs_Days!BN12 -> 0 | BO8: =Calcs_Days!BO12 -> 0 | BP8: =Calcs_Days!BP12 -> 0
C10: Trade debtors
C11: Controls
C12: Date revenue first recognised | D12: Months | E12: =Inputs!F19 -> 1.4 | I12: =EOMONTH(I$4,-$E12) -> 2016-12-31 | J12: =EOMONTH(J$4,-$E12) -> 2017-01-31 | K12: 2017-02-28 | L12: 2017-03-31 | M12: 2017-04-30 | N12: 2017-05-31 | O12: 2017-06-30 | P12: 2017-07-31 | Q12: 2017-08-31 | R12: 2017-09-30 | S12: 2017-10-31 | T12: 2017-11-30 | U12: 2017-12-31 | V12: 2018-01-31 | W12: 2018-02-28 | X12: 2018-03-31 | Y12: 2018-04-30 | Z12: 2018-05-31 | AA12: 2018-06-30 | AB12: 2018-07-31 | AC12: 2018-08-31 | AD12: 2018-09-30 | AE12: 2018-10-31 | AF12: 2018-11-30 | AG12: 2018-12-31 | AH12: 2019-01-31 | AI12: 2019-02-28 | AJ12: 2019-03-31 | AK12: 2019-04-30 | AL12: 2019-05-31 | AM12: 2019-06-30 | AN12: 2019-07-31 | AO12: 2019-08-31 | AP12: 2019-09-30 | AQ12: 2019-10-31 | AR12: 2019-11-30 | AS12: 2019-12-31 | AT12: 2020-01-31 | AU12: 2020-02-29 | AV12: 2020-03-31 | AW12: 2020-04-30 | AX12: 2020-05-31 | AY12: 2020-06-30 | AZ12: 2020-07-31 | BA12: 2020-08-31 | BB12: 2020-09-30 | BC12: 2020-10-31 | BD12: 2020-11-30 | BE12: 2020-12-31 | BF12: 2021-01-31 | BG12: 2021-02-28 | BH12: 2021-03-31 | BI12: 2021-04-30 | BJ12: 2021-05-31 | BK12: 2021-06-30 | BL12: 2021-07-31 | BM12: 2021-08-31 | BN12: 2021-09-30 | BO12: 2021-10-31 | BP12: 2021-11-30
C13: Outstanding balances from previous periods | D13: Months | E13: =E12+1 -> 2.4 | I13: =EOMONTH(I$4,-$E13) -> 2016-11-30 | J13: 2016-12-31 | K13: 2017-01-31 | L13: 2017-02-28 | M13: 2017-03-31 | N13: 2017-04-30 | O13: 2017-05-31 | P13: 2017-06-30 | Q13: 2017-07-31 | R13: 2017-08-31 | S13: 2017-09-30 | T13: 2017-10-31 | U13: 2017-11-30 | V13: 2017-12-31 | W13: 2018-01-31 | X13: 2018-02-28 | Y13: 2018-03-31 | Z13: 2018-04-30 | AA13: 2018-05-31 | AB13: 2018-06-30 | AC13: 2018-07-31 | AD13: 2018-08-31 | AE13: 2018-09-30 | AF13: 2018-10-31 | AG13: 2018-11-30 | AH13: 2018-12-31 | AI13: 2019-01-31 | AJ13: 2019-02-28 | AK13: 2019-03-31 | AL13: 2019-04-30 | AM13: 2019-05-31 | AN13: 2019-06-30 | AO13: 2019-07-31 | AP13: 2019-08-31 | AQ13: 2019-09-30 | AR13: 2019-10-31 | AS13: 2019-11-30 | AT13: 2019-12-31 | AU13: 2020-01-31 | AV13: 2020-02-29 | AW13: 2020-03-31 | AX13: 2020-04-30 | AY13: 2020-05-31 | AZ13: 2020-06-30 | BA13: 2020-07-31 | BB13: 2020-08-31 | BC13: 2020-09-30 | BD13: 2020-10-31 | BE13: 2020-11-30 | BF13: 2020-12-31 | BG13: 2021-01-31 | BH13: 2021-02-28 | BI13: 2021-03-31 | BJ13: 2021-04-30 | BK13: 2021-05-31 | BL13: 2021-06-30 | BM13: 2021-07-31 | BN13: 2021-08-31 | BO13: 2021-09-30 | BP13: 2021-10-31
C15: Debtor receipt
C16: Revenue | D16: AUD '000 | E16: =1-(E12-ROUNDDOWN(E12,0)) -> 0.6 | H16: =SUM(I16:BP16) -> 109119.8932 | I16: =IFERROR(LOOKUP(I12,$H$4:$BP$4,$H$22:$BP$22),0)*IF($E16=0,0,$E16) -> 600 | J16: =IFERROR(LOOKUP(J12,$H$4:$BP$4,$H$22:$BP$22),0)*IF($E16=0,0,$E16) -> 620.0350594 | K16: =IFERROR(LOOKUP(K12,$H$4:$BP$4,$H$22:$BP$22),0)*IF($E16=0,0,$E16) -> 721.442093 | L16: =IFERROR(LOOKUP(L12,$H$4:$BP$4,$H$22:$BP$22),0)*IF($E16=0,0,$E16) -> 4862.929485 | M16: =IFERROR(LOOKUP(M12,$H$4:$BP$4,$H$22:$BP$22),0)*IF($E16=0,0,$E16) -> 319.7807656 | N16: =IFERROR(LOOKUP(N12,$H$4:$BP$4,$H$22:$BP$22),0)*IF($E16=0,0,$E16) -> 1024.392841 | O16: =IFERROR(LOOKUP(O12,$H$4:$BP$4,$H$22:$BP$22),0)*IF($E16=0,0,$E16) -> 5735.33287 | P16: =IFERROR(LOOKUP(P12,$H$4:$BP$4,$H$22:$BP$22),0)*IF($E16=0,0,$E16) -> 958.1387503 | Q16: =IFERROR(LOOKUP(Q12,$H$4:$BP$4,$H$22:$BP$22),0)*IF($E16=0,0,$E16) -> 3457.374964 | R16: =IFERROR(LOOKUP(R12,$H$4:$BP$4,$H$22:$BP$22),0)*IF($E16=0,0,$E16) -> 5057.609646 | S16: =IFERROR(LOOKUP(S12,$H$4:$BP$4,$H$22:$BP$22),0)*IF($E16=0,0,$E16) -> 1916.750119 | T16: =IFERROR(LOOKUP(T12,$H$4:$BP$4,$H$22:$BP$22),0)*IF($E16=0,0,$E16) -> 2391.575668 | U16: =IFERROR(LOOKUP(U12,$H$4:$BP$4,$H$22:$BP$22),0)*IF($E16=0,0,$E16) -> 4328.628575 | V16: =IFERROR(LOOKUP(V12,$H$4:$BP$4,$H$22:$BP$22),0)*IF($E16=0,0,$E16) -> 947.4533225 | W16: =IFERROR(LOOKUP(W12,$H$4:$BP$4,$H$22:$BP$22),0)*IF($E16=0,0,$E16) -> 4754.331281 | X16: =IFERROR(LOOKUP(X12,$H$4:$BP$4,$H$22:$BP$22),0)*IF($E16=0,0,$E16) -> 2918.582123 | Y16: =IFERROR(LOOKUP(Y12,$H$4:$BP$4,$H$22:$BP$22),0)*IF($E16=0,0,$E16) -> 5486.366653 | Z16: =IFERROR(LOOKUP(Z12,$H$4:$BP$4,$H$22:$BP$22),0)*IF($E16=0,0,$E16) -> 2602.433914 | AA16: =IFERROR(LOOKUP(AA12,$H$4:$BP$4,$H$22:$BP$22),0)*IF($E16=0,0,$E16) -> 3525.837172 | AB16: =IFERROR(LOOKUP(AB12,$H$4:$BP$4,$H$22:$BP$22),0)*IF($E16=0,0,$E16) -> 3214.38023 | AC16: =IFERROR(LOOKUP(AC12,$H$4:$BP$4,$H$22:$BP$22),0)*IF($E16=0,0,$E16) -> 1001.665579 | AD16: =IFERROR(LOOKUP(AD12,$H$4:$BP$4,$H$22:$BP$22),0)*IF($E16=0,0,$E16) -> 872.6715706 | AE16: =IFERROR(LOOKUP(AE12,$H$4:$BP$4,$H$22:$BP$22),0)*IF($E16=0,0,$E16) -> 1107.12996 | AF16: =IFERROR(LOOKUP(AF12,$H$4:$BP$4,$H$22:$BP$22),0)*IF($E16=0,0,$E16) -> 4263.469606 | AG16: =IFERROR(LOOKUP(AG12,$H$4:$BP$4,$H$22:$BP$22),0)*IF($E16=0,0,$E16) -> 354.5640089 | AH16: =IFERROR(LOOKUP(AH12,$H$4:$BP$4,$H$22:$BP$22),0)*IF($E16=0,0,$E16) -> 2819.698728 | AI16: =IFERROR(LOOKUP(AI12,$H$4:$BP$4,$H$22:$BP$22),0)*IF($E16=0,0,$E16) -> 5437.895767 | AJ16: =IFERROR(LOOKUP(AJ12,$H$4:$BP$4,$H$22:$BP$22),0)*IF($E16=0,0,$E16) -> 4032.060793 | AK16: =IFERROR(LOOKUP(AK12,$H$4:$BP$4,$H$22:$BP$22),0)*IF($E16=0,0,$E16) -> 5731.082776 | AL16: =IFERROR(LOOKUP(AL12,$H$4:$BP$4,$H$22:$BP$22),0)*IF($E16=0,0,$E16) -> 2259.8137 | AM16: =IFERROR(LOOKUP(AM12,$H$4:$BP$4,$H$22:$BP$22),0)*IF($E16=0,0,$E16) -> 974.5530094 | AN16: =IFERROR(LOOKUP(AN12,$H$4:$BP$4,$H$22:$BP$22),0)*IF($E16=0,0,$E16) -> 4451.804561 | AO16: =IFERROR(LOOKUP(AO12,$H$4:$BP$4,$H$22:$BP$22),0)*IF($E16=0,0,$E16) -> 4012.965383 | AP16: =IFERROR(LOOKUP(AP12,$H$4:$BP$4,$H$22:$BP$22),0)*IF($E16=0,0,$E16) -> 2128.402003 | AQ16: =IFERROR(LOOKUP(AQ12,$H$4:$BP$4,$H$22:$BP$22),0)*IF($E16=0,0,$E16) -> 4885.829409 | AR16: =IFERROR(LOOKUP(AR12,$H$4:$BP$4,$H$22:$BP$22),0)*IF($E16=0,0,$E16) -> 4121.45516 | AS16: =IFERROR(LOOKUP(AS12,$H$4:$BP$4,$H$22:$BP$22),0)*IF($E16=0,0,$E16) -> 5221.455629 | AT16: =IFERROR(LOOKUP(AT12,$H$4:$BP$4,$H$22:$BP$22),0)*IF($E16=0,0,$E16) -> 0 | AU16: =IFERROR(LOOKUP(AU12,$H$4:$BP$4,$H$22:$BP$22),0)*IF($E16=0,0,$E16) -> 0 | AV16: =IFERROR(LOOKUP(AV12,$H$4:$BP$4,$H$22:$BP$22),0)*IF($E16=0,0,$E16) -> 0 | AW16: =IFERROR(LOOKUP(AW12,$H$4:$BP$4,$H$22:$BP$22),0)*IF($E16=0,0,$E16) -> 0 | AX16: =IFERROR(LOOKUP(AX12,$H$4:$BP$4,$H$22:$BP$22),0)*IF($E16=0,0,$E16) -> 0 | AY16: =IFERROR(LOOKUP(AY12,$H$4:$BP$4,$H$22:$BP$22),0)*IF($E16=0,0,$E16) -> 0 | AZ16: =IFERROR(LOOKUP(AZ12,$H$4:$BP$4,$H$22:$BP$22),0)*IF($E16=0,0,$E16) -> 0 | BA16: =IFERROR(LOOKUP(BA12,$H$4:$BP$4,$H$22:$BP$22),0)*IF($E16=0,0,$E16) -> 0 | BB16: =IFERROR(LOOKUP(BB12,$H$4:$BP$4,$H$22:$BP$22),0)*IF($E16=0,0,$E16) -> 0 | BC16: =IFERROR(LOOKUP(BC12,$H$4:$BP$4,$H$22:$BP$22),0)*IF($E16=0,0,$E16) -> 0 | BD16: =IFERROR(LOOKUP(BD12,$H$4:$BP$4,$H$22:$BP$22),0)*IF($E16=0,0,$E16) -> 0 | BE16: =IFERROR(LOOKUP(BE12,$H$4:$BP$4,$H$22:$BP$22),0)*IF($E16=0,0,$E16) -> 0 | BF16: =IFERROR(LOOKUP(BF12,$H$4:$BP$4,$H$22:$BP$22),0)*IF($E16=0,0,$E16) -> 0 | BG16: =IFERROR(LOOKUP(BG12,$H$4:$BP$4,$H$22:$BP$22),0)*IF($E16=0,0,$E16) -> 0 | BH16: =IFERROR(LOOKUP(BH12,$H$4:$BP$4,$H$22:$BP$22),0)*IF($E16=0,0,$E16) -> 0 | BI16: =IFERROR(LOOKUP(BI12,$H$4:$BP$4,$H$22:$BP$22),0)*IF($E16=0,0,$E16) -> 0 | BJ16: =IFERROR(LOOKUP(BJ12,$H$4:$BP$4,$H$22:$BP$22),0)*IF($E16=0,0,$E16) -> 0 | BK16: =IFERROR(LOOKUP(BK12,$H$4:$BP$4,$H$22:$BP$22),0)*IF($E16=0,0,$E16) -> 0 | BL16: =IFERROR(LOOKUP(BL12,$H$4:$BP$4,$H$22:$BP$22),0)*IF($E16=0,0,$E16) -> 0 | BM16: =IFERROR(LOOKUP(BM12,$H$4:$BP$4,$H$22:$BP$22),0)*IF($E16=0,0,$E16) -> 0 | BN16: =IFERROR(LOOKUP(BN12,$H$4:$BP$4,$H$22:$BP$22),0)*IF($E16=0,0,$E16) -> 0 | BO16: =IFERROR(LOOKUP(BO12,$H$4:$BP$4,$H$22:$BP$22),0)*IF($E16=0,0,$E16) -> 0 | BP16: =IFERROR(LOOKUP(BP12,$H$4:$BP$4,$H$22:$BP$22),0)*IF($E16=0,0,$E16) -> 0
C17: Outstanding balances from previous periods | D17: AUD '000 | E17: =1-E16 -> 0.4 | H17: =SUM(I17:BP17) -> 72746.59545 | I17: =IFERROR(LOOKUP(I13,$H$4:$BP$4,$H$22:$BP$22),0)*IF($E17=0,0,$E17) -> 0 | J17: =IFERROR(LOOKUP(J13,$H$4:$BP$4,$H$22:$BP$22),0)*IF($E17=0,0,$E17) -> 400 | K17: =IFERROR(LOOKUP(K13,$H$4:$BP$4,$H$22:$BP$22),0)*IF($E17=0,0,$E17) -> 413.3567063 | L17: =IFERROR(LOOKUP(L13,$H$4:$BP$4,$H$22:$BP$22),0)*IF($E17=0,0,$E17) -> 480.9613953 | M17: =IFERROR(LOOKUP(M13,$H$4:$BP$4,$H$22:$BP$22),0)*IF($E17=0,0,$E17) -> 3241.95299 | N17: =IFERROR(LOOKUP(N13,$H$4:$BP$4,$H$22:$BP$22),0)*IF($E17=0,0,$E17) -> 213.1871771 | O17: =IFERROR(LOOKUP(O13,$H$4:$BP$4,$H$22:$BP$22),0)*IF($E17=0,0,$E17) -> 682.9285608 | P17: =IFERROR(LOOKUP(P13,$H$4:$BP$4,$H$22:$BP$22),0)*IF($E17=0,0,$E17) -> 3823.555246 | Q17: =IFERROR(LOOKUP(Q13,$H$4:$BP$4,$H$22:$BP$22),0)*IF($E17=0,0,$E17) -> 638.7591669 | R17: =IFERROR(LOOKUP(R13,$H$4:$BP$4,$H$22:$BP$22),0)*IF($E17=0,0,$E17) -> 2304.916642 | S17: =IFERROR(LOOKUP(S13,$H$4:$BP$4,$H$22:$BP$22),0)*IF($E17=0,0,$E17) -> 3371.739764 | T17: =IFERROR(LOOKUP(T13,$H$4:$BP$4,$H$22:$BP$22),0)*IF($E17=0,0,$E17) -> 1277.833413 | U17: =IFERROR(LOOKUP(U13,$H$4:$BP$4,$H$22:$BP$22),0)*IF($E17=0,0,$E17) -> 1594.383779 | V17: =IFERROR(LOOKUP(V13,$H$4:$BP$4,$H$22:$BP$22),0)*IF($E17=0,0,$E17) -> 2885.752383 | W17: =IFERROR(LOOKUP(W13,$H$4:$BP$4,$H$22:$BP$22),0)*IF($E17=0,0,$E17) -> 631.6355484 | X17: =IFERROR(LOOKUP(X13,$H$4:$BP$4,$H$22:$BP$22),0)*IF($E17=0,0,$E17) -> 3169.554188 | Y17: =IFERROR(LOOKUP(Y13,$H$4:$BP$4,$H$22:$BP$22),0)*IF($E17=0,0,$E17) -> 1945.721415 | Z17: =IFERROR(LOOKUP(Z13,$H$4:$BP$4,$H$22:$BP$22),0)*IF($E17=0,0,$E17) -> 3657.577769 | AA17: =IFERROR(LOOKUP(AA13,$H$4:$BP$4,$H$22:$BP$22),0)*IF($E17=0,0,$E17) -> 1734.955942 | AB17: =IFERROR(LOOKUP(AB13,$H$4:$BP$4,$H$22:$BP$22),0)*IF($E17=0,0,$E17) -> 2350.558115 | AC17: =IFERROR(LOOKUP(AC13,$H$4:$BP$4,$H$22:$BP$22),0)*IF($E17=0,0,$E17) -> 2142.920153 | AD17: =IFERROR(LOOKUP(AD13,$H$4:$BP$4,$H$22:$BP$22),0)*IF($E17=0,0,$E17) -> 667.7770528 | AE17: =IFERROR(LOOKUP(AE13,$H$4:$BP$4,$H$22:$BP$22),0)*IF($E17=0,0,$E17) -> 581.781047 | AF17: =IFERROR(LOOKUP(AF13,$H$4:$BP$4,$H$22:$BP$22),0)*IF($E17=0,0,$E17) -> 738.0866398 | AG17: =IFERROR(LOOKUP(AG13,$H$4:$BP$4,$H$22:$BP$22),0)*IF($E17=0,0,$E17) -> 2842.31307 | AH17: =IFERROR(LOOKUP(AH13,$H$4:$BP$4,$H$22:$BP$22),0)*IF($E17=0,0,$E17) -> 236.3760059 | AI17: =IFERROR(LOOKUP(AI13,$H$4:$BP$4,$H$22:$BP$22),0)*IF($E17=0,0,$E17) -> 1879.799152 | AJ17: =IFERROR(LOOKUP(AJ13,$H$4:$BP$4,$H$22:$BP$22),0)*IF($E17=0,0,$E17) -> 3625.263845 | AK17: =IFERROR(LOOKUP(AK13,$H$4:$BP$4,$H$22:$BP$22),0)*IF($E17=0,0,$E17) -> 2688.040529 | AL17: =IFERROR(LOOKUP(AL13,$H$4:$BP$4,$H$22:$BP$22),0)*IF($E17=0,0,$E17) -> 3820.721851 | AM17: =IFERROR(LOOKUP(AM13,$H$4:$BP$4,$H$22:$BP$22),0)*IF($E17=0,0,$E17) -> 1506.542467 | AN17: =IFERROR(LOOKUP(AN13,$H$4:$BP$4,$H$22:$BP$22),0)*IF($E17=0,0,$E17) -> 649.7020063 | AO17: =IFERROR(LOOKUP(AO13,$H$4:$BP$4,$H$22:$BP$22),0)*IF($E17=0,0,$E17) -> 2967.869708 | AP17: =IFERROR(LOOKUP(AP13,$H$4:$BP$4,$H$22:$BP$22),0)*IF($E17=0,0,$E17) -> 2675.310255 | AQ17: =IFERROR(LOOKUP(AQ13,$H$4:$BP$4,$H$22:$BP$22),0)*IF($E17=0,0,$E17) -> 1418.934669 | AR17: =IFERROR(LOOKUP(AR13,$H$4:$BP$4,$H$22:$BP$22),0)*IF($E17=0,0,$E17) -> 3257.219606 | AS17: =IFERROR(LOOKUP(AS13,$H$4:$BP$4,$H$22:$BP$22),0)*IF($E17=0,0,$E17) -> 2747.636774 | AT17: =IFERROR(LOOKUP(AT13,$H$4:$BP$4,$H$22:$BP$22),0)*IF($E17=0,0,$E17) -> 3480.970419 | AU17: =IFERROR(LOOKUP(AU13,$H$4:$BP$4,$H$22:$BP$22),0)*IF($E17=0,0,$E17) -> 0 | AV17: =IFERROR(LOOKUP(AV13,$H$4:$BP$4,$H$22:$BP$22),0)*IF($E17=0,0,$E17) -> 0 | AW17: =IFERROR(LOOKUP(AW13,$H$4:$BP$4,$H$22:$BP$22),0)*IF($E17=0,0,$E17) -> 0 | AX17: =IFERROR(LOOKUP(AX13,$H$4:$BP$4,$H$22:$BP$22),0)*IF($E17=0,0,$E17) -> 0 | AY17: =IFERROR(LOOKUP(AY13,$H$4:$BP$4,$H$22:$BP$22),0)*IF($E17=0,0,$E17) -> 0 | AZ17: =IFERROR(LOOKUP(AZ13,$H$4:$BP$4,$H$22:$BP$22),0)*IF($E17=0,0,$E17) -> 0 | BA17: =IFERROR(LOOKUP(BA13,$H$4:$BP$4,$H$22:$BP$22),0)*IF($E17=0,0,$E17) -> 0 | BB17: =IFERROR(LOOKUP(BB13,$H$4:$BP$4,$H$22:$BP$22),0)*IF($E17=0,0,$E17) -> 0 | BC17: =IFERROR(LOOKUP(BC13,$H$4:$BP$4,$H$22:$BP$22),0)*IF($E17=0,0,$E17) -> 0 | BD17: =IFERROR(LOOKUP(BD13,$H$4:$BP$4,$H$22:$BP$22),0)*IF($E17=0,0,$E17) -> 0 | BE17: =IFERROR(LOOKUP(BE13,$H$4:$BP$4,$H$22:$BP$22),0)*IF($E17=0,0,$E17) -> 0 | BF17: =IFERROR(LOOKUP(BF13,$H$4:$BP$4,$H$22:$BP$22),0)*IF($E17=0,0,$E17) -> 0 | BG17: =IFERROR(LOOKUP(BG13,$H$4:$BP$4,$H$22:$BP$22),0)*IF($E17=0,0,$E17) -> 0 | BH17: =IFERROR(LOOKUP(BH13,$H$4:$BP$4,$H$22:$BP$22),0)*IF($E17=0,0,$E17) -> 0 | BI17: =IFERROR(LOOKUP(BI13,$H$4:$BP$4,$H$22:$BP$22),0)*IF($E17=0,0,$E17) -> 0 | BJ17: =IFERROR(LOOKUP(BJ13,$H$4:$BP$4,$H$22:$BP$22),0)*IF($E17=0,0,$E17) -> 0 | BK17: =IFERROR(LOOKUP(BK13,$H$4:$BP$4,$H$22:$BP$22),0)*IF($E17=0,0,$E17) -> 0 | BL17: =IFERROR(LOOKUP(BL13,$H$4:$BP$4,$H$22:$BP$22),0)*IF($E17=0,0,$E17) -> 0 | BM17: =IFERROR(LOOKUP(BM13,$H$4:$BP$4,$H$22:$BP$22),0)*IF($E17=0,0,$E17) -> 0 | BN17: =IFERROR(LOOKUP(BN13,$H$4:$BP$4,$H$22:$BP$22),0)*IF($E17=0,0,$E17) -> 0 | BO17: =IFERROR(LOOKUP(BO13,$H$4:$BP$4,$H$22:$BP$22),0)*IF($E17=0,0,$E17) -> 0 | BP17: =IFERROR(LOOKUP(BP13,$H$4:$BP$4,$H$22:$BP$22),0)*IF($E17=0,0,$E17) -> 0
C18: Total | D18: AUD '000 | H18: =SUM(I18:BP18) -> 181866.4886 | I18: =SUM(I16:I17) -> 600 | J18: =SUM(J16:J17) -> 1020.035059 | K18: 1134.798799 | L18: 5343.89088 | M18: 3561.733756 | N18: 1237.580018 | O18: 6418.26143 | P18: 4781.693997 | Q18: 4096.13413 | R18: 7362.526288 | S18: 5288.489883 | T18: 3669.409081 | U18: 5923.012354 | V18: 3833.205706 | W18: 5385.96683 | X18: 6088.13631 | Y18: 7432.088068 | Z18: 6260.011682 | AA18: 5260.793115 | AB18: 5564.938344 | AC18: 3144.585732 | AD18: 1540.448623 | AE18: 1688.911007 | AF18: 5001.556245 | AG18: 3196.877079 | AH18: 3056.074734 | AI18: 7317.694919 | AJ18: 7657.324638 | AK18: 8419.123305 | AL18: 6080.535551 | AM18: 2481.095476 | AN18: 5101.506568 | AO18: 6980.835091 | AP18: 4803.712258 | AQ18: 6304.764078 | AR18: 7378.674766 | AS18: 7969.092402 | AT18: 3480.970419 | AU18: 0 | AV18: 0 | AW18: 0 | AX18: 0 | AY18: 0 | AZ18: 0 | BA18: 0 | BB18: 0 | BC18: 0 | BD18: 0 | BE18: 0 | BF18: 0 | BG18: 0 | BH18: 0 | BI18: 0 | BJ18: 0 | BK18: 0 | BL18: 0 | BM18: 0 | BN18: 0 | BO18: 0 | BP18: 0
C20: Account
C21: Balance b/f | D21: AUD '000 | I21: =H24*I5 -> 0 | J21: =I24*J5 -> 433.3917657 | K21: =J24*K5 -> 615.7601945 | L21: =K24*L5 -> 7585.84387 | M21: =L24*M5 -> 2774.920933 | N21: =M24*N5 -> 920.5085792 | O21: =N24*O5 -> 9241.816677 | P21: =O24*P5 -> 4420.453164 | Q21: =P24*Q5 -> 5401.050773 | R21: =Q24*R5 -> 9734.266052 | S21: =R24*S5 -> 5566.323296 | T21: =S24*T5 -> 4263.79286 | U21: =T24*U5 -> 7808.764737 | V21: =U24*V5 -> 3464.841254 | W21: =V24*W5 -> 7555.521017 | X21: =W24*X5 -> 7033.857725 | Y21: =X24*Y5 -> 10089.66584 | Z21: =Y24*Z5 -> 6994.967625 | AA21: =Z24*AA5 -> 6611.351229 | AB21: =AA24*AB5 -> 6707.858497 | AC21: =AB24*AC5 -> 2812.362785 | AD21: =AC24*AD5 -> 1122.22967 | AE21: =AD24*AE5 -> 1426.997646 | AF21: =AE24*AF5 -> 6843.869316 | AG21: =AF24*AG5 -> 2433.253085 | AH21: =AG24*AH5 -> 3935.873886 | AI21: =AH24*AI5 -> 9942.958764 | AJ21: =AI24*AJ5 -> 9345.365166 | AK21: =AJ24*AK5 -> 11239.84516 | AL21: =AK24*AL5 -> 6587.078018 | AM21: =AL24*AM5 -> 2130.797483 | AN21: =AM24*AN5 -> 7069.376275 | AO21: =AN24*AO5 -> 8656.145346 | AP21: =AO24*AP5 -> 5222.646927 | AQ21: =AP24*AQ5 -> 8561.983683 | AR21: =AQ24*AR5 -> 9126.31154 | AS21: =AR24*AS5 -> 0 | AT21: =AS24*AT5 -> 0 | AU21: =AT24*AU5 -> 0 | AV21: =AU24*AV5 -> 0 | AW21: =AV24*AW5 -> 0 | AX21: =AW24*AX5 -> 0 | AY21: =AX24*AY5 -> 0 | AZ21: =AY24*AZ5 -> 0 | BA21: =AZ24*BA5 -> 0 | BB21: =BA24*BB5 -> 0 | BC21: =BB24*BC5 -> 0 | BD21: =BC24*BD5 -> 0 | BE21: =BD24*BE5 -> 0 | BF21: =BE24*BF5 -> 0 | BG21: =BF24*BG5 -> 0 | BH21: =BG24*BH5 -> 0 | BI21: =BH24*BI5 -> 0 | BJ21: =BI24*BJ5 -> 0 | BK21: =BJ24*BK5 -> 0 | BL21: =BK24*BL5 -> 0 | BM21: =BL24*BM5 -> 0 | BN21: =BM24*BN5 -> 0 | BO21: =BN24*BO5 -> 0 | BP21: =BO24*BP5 -> 0
C22: Revenue | D22: AUD '000 | G22: =SUM(I22:BP22) -> 180866.4886 | H22: =H8 -> 1000 | I22: =I8 -> 1033.391766 | J22: =J8 -> 1202.403488 | K22: =K8 -> 8104.882475 | L22: =L8 -> 532.9679427 | M22: =M8 -> 1707.321402 | N22: =N8 -> 9558.888116 | O22: =O8 -> 1596.897917 | P22: =P8 -> 5762.291606 | Q22: =Q8 -> 8429.34941 | R22: =R8 -> 3194.583532 | S22: =S8 -> 3985.959447 | T22: =T8 -> 7214.380958 | U22: =U8 -> 1579.088871 | V22: =V8 -> 7923.885469 | W22: =W8 -> 4864.303538 | X22: =X8 -> 9143.944422 | Y22: =Y8 -> 4337.389856 | Z22: =Z8 -> 5876.395287 | AA22: =AA8 -> 5357.300383 | AB22: =AB8 -> 1669.442632 | AC22: =AC8 -> 1454.452618 | AD22: =AD8 -> 1845.216599 | AE22: =AE8 -> 7105.782676 | AF22: =AF8 -> 590.9400148 | AG22: =AG8 -> 4699.49788 | AH22: =AH8 -> 9063.159612 | AI22: =AI8 -> 6720.101321 | AJ22: =AJ8 -> 9551.804627 | AK22: =AK8 -> 3766.356167 | AL22: =AL8 -> 1624.255016 | AM22: =AM8 -> 7419.674269 | AN22: =AN8 -> 6688.275638 | AO22: =AO8 -> 3547.336672 | AP22: =AP8 -> 8143.049015 | AQ22: =AQ8 -> 6869.091934 | AR22: =AR8 -> 8702.426048 | AS22: =AS8 -> 0 | AT22: =AT8 -> 0 | AU22: =AU8 -> 0 | AV22: =AV8 -> 0 | AW22: =AW8 -> 0 | AX22: =AX8 -> 0 | AY22: =AY8 -> 0 | AZ22: =AZ8 -> 0 | BA22: =BA8 -> 0 | BB22: =BB8 -> 0 | BC22: =BC8 -> 0 | BD22: =BD8 -> 0 | BE22: =BE8 -> 0 | BF22: =BF8 -> 0 | BG22: =BG8 -> 0 | BH22: =BH8 -> 0 | BI22: =BI8 -> 0 | BJ22: =BJ8 -> 0 | BK22: =BK8 -> 0 | BL22: =BL8 -> 0 | BM22: =BM8 -> 0 | BN22: =BN8 -> 0 | BO22: =BO8 -> 0 | BP22: =BP8 -> 0
C23: Received | D23: AUD '000 | H23: =SUM(I23:BP23) -> -170416.4258 | I23: =-I18*I5 -> -600 | J23: =-J18*J5 -> -1020.035059 | K23: =-K18*K5 -> -1134.798799 | L23: =-L18*L5 -> -5343.89088 | M23: =-M18*M5 -> -3561.733756 | N23: =-N18*N5 -> -1237.580018 | O23: =-O18*O5 -> -6418.26143 | P23: =-P18*P5 -> -4781.693997 | Q23: =-Q18*Q5 -> -4096.13413 | R23: =-R18*R5 -> -7362.526288 | S23: =-S18*S5 -> -5288.489883 | T23: =-T18*T5 -> -3669.409081 | U23: =-U18*U5 -> -5923.012354 | V23: =-V18*V5 -> -3833.205706 | W23: =-W18*W5 -> -5385.96683 | X23: =-X18*X5 -> -6088.13631 | Y23: =-Y18*Y5 -> -7432.088068 | Z23: =-Z18*Z5 -> -6260.011682 | AA23: =-AA18*AA5 -> -5260.793115 | AB23: =-AB18*AB5 -> -5564.938344 | AC23: =-AC18*AC5 -> -3144.585732 | AD23: =-AD18*AD5 -> -1540.448623 | AE23: =-AE18*AE5 -> -1688.911007 | AF23: =-AF18*AF5 -> -5001.556245 | AG23: =-AG18*AG5 -> -3196.877079 | AH23: =-AH18*AH5 -> -3056.074734 | AI23: =-AI18*AI5 -> -7317.694919 | AJ23: =-AJ18*AJ5 -> -7657.324638 | AK23: =-AK18*AK5 -> -8419.123305 | AL23: =-AL18*AL5 -> -6080.535551 | AM23: =-AM18*AM5 -> -2481.095476 | AN23: =-AN18*AN5 -> -5101.506568 | AO23: =-AO18*AO5 -> -6980.835091 | AP23: =-AP18*AP5 -> -4803.712258 | AQ23: =-AQ18*AQ5 -> -6304.764078 | AR23: =-AR18*AR5 -> -7378.674766 | AS23: =-AS18*AS5 -> 0 | AT23: =-AT18*AT5 -> 0 | AU23: =-AU18*AU5 -> 0 | AV23: =-AV18*AV5 -> 0 | AW23: =-AW18*AW5 -> 0 | AX23: =-AX18*AX5 -> 0 | AY23: =-AY18*AY5 -> 0 | AZ23: =-AZ18*AZ5 -> 0 | BA23: =-BA18*BA5 -> 0 | BB23: =-BB18*BB5 -> 0 | BC23: =-BC18*BC5 -> 0 | BD23: =-BD18*BD5 -> 0 | BE23: =-BE18*BE5 -> 0 | BF23: =-BF18*BF5 -> 0 | BG23: =-BG18*BG5 -> 0 | BH23: =-BH18*BH5 -> 0 | BI23: =-BI18*BI5 -> 0 | BJ23: =-BJ18*BJ5 -> 0 | BK23: =-BK18*BK5 -> 0 | BL23: =-BL18*BL5 -> 0 | BM23: =-BM18*BM5 -> 0 | BN23: =-BN18*BN5 -> 0 | BO23: =-BO18*BO5 -> 0 | BP23: =-BP18*BP5 -> 0
C24: Balance c/f | D24: AUD '000 | I24: =SUM(I21:I23) -> 433.3917657 | J24: =SUM(J21:J23) -> 615.7601945 | K24: 7585.84387 | L24: 2774.920933 | M24: 920.5085792 | N24: 9241.816677 | O24: 4420.453164 | P24: 5401.050773 | Q24: 9734.266052 | R24: 5566.323296 | S24: 4263.79286 | T24: 7808.764737 | U24: 3464.841254 | V24: 7555.521017 | W24: 7033.857725 | X24: 10089.66584 | Y24: 6994.967625 | Z24: 6611.351229 | AA24: 6707.858497 | AB24: 2812.362785 | AC24: 1122.22967 | AD24: 1426.997646 | AE24: 6843.869316 | AF24: 2433.253085 | AG24: 3935.873886 | AH24: 9942.958764 | AI24: 9345.365166 | AJ24: 11239.84516 | AK24: 6587.078018 | AL24: 2130.797483 | AM24: 7069.376275 | AN24: 8656.145346 | AO24: 5222.646927 | AP24: 8561.983683 | AQ24: 9126.31154 | AR24: 10450.06282 | AS24: 0 | AT24: 0 | AU24: 0 | AV24: 0 | AW24: 0 | AX24: 0 | AY24: 0 | AZ24: 0 | BA24: 0 | BB24: 0 | BC24: 0 | BD24: 0 | BE24: 0 | BF24: 0 | BG24: 0 | BH24: 0 | BI24: 0 | BJ24: 0 | BK24: 0 | BL24: 0 | BM24: 0 | BN24: 0 | BO24: 0 | BP24: 0
C26: Working captial adjustment for cashflow | D26: AUD '000 | H26: =SUM(I26:BP26) -> -10450.06282 | I26: =I21-I24 -> -433.3917657 | J26: =J21-J24 -> -182.3684289 | K26: -6970.083676 | L26: 4810.922938 | M26: 1854.412354 | N26: -8321.308098 | O26: 4821.363513 | P26: -980.5976092 | Q26: -4333.21528 | R26: 4167.942757 | S26: 1302.530436 | T26: -3544.971877 | U26: 4343.923483 | V26: -4090.679763 | W26: 521.663292 | X26: -3055.808112 | Y26: 3094.698212 | Z26: 383.6163952 | AA26: -96.50726798 | AB26: 3895.495712 | AC26: 1690.133115 | AD26: -304.767976 | AE26: -5416.871669 | AF26: 4410.616231 | AG26: -1502.620801 | AH26: -6007.084878 | AI26: 597.5935981 | AJ26: -1894.47999 | AK26: 4652.767138 | AL26: 4456.280535 | AM26: -4938.578793 | AN26: -1586.769071 | AO26: 3433.498419 | AP26: -3339.336756 | AQ26: -564.3278565 | AR26: -1323.751281 | AS26: 0 | AT26: 0 | AU26: 0 | AV26: 0 | AW26: 0 | AX26: 0 | AY26: 0 | AZ26: 0 | BA26: 0 | BB26: 0 | BC26: 0 | BD26: 0 | BE26: 0 | BF26: 0 | BG26: 0 | BH26: 0 | BI26: 0 | BJ26: 0 | BK26: 0 | BL26: 0 | BM26: 0 | BN26: 0 | BO26: 0 | BP26: 0
